bitfinex-derivatives/quotes_BNBF0:USTF0_20251219
["timestamp","ask_amount","ask_price","bid_price","bid_amount"]
[1766135071963,12.94557054,844.67,843.83,1.17410749]
[1766135074069,12.94557054,844.67,843.82,1.17410749]
[1766135074568,12.94557054,844.67,843.81,1.17410749]
[1766135076369,12.94557054,844.67,843.79,1.17410749]
[1766135076569,12.94557054,844.67,843.78,1.17410749]
[1766135076769,12.94557054,844.67,843.73,1.17410749]
[1766135076967,12.94557054,844.67,843.77,1.17410749]
[1766135077970,12.94557054,844.67,843.78,1.17410749]
[1766135081675,12.94557054,844.67,843.73,1.17410749]
[1766135082375,12.94557054,844.67,843.74,1.17410749]
[1766135083875,12.94557054,844.67,843.76,1.17410749]
[1766135086170,12.94557054,844.67,843.77,1.17410749]
[1766135086570,1.1852888,844.66,843.72,1.17410749]
[1766135088076,12.94557054,844.67,843.72,1.17410749]
[1766135088276,12.94557054,844.67,843.75,1.17410749]
[1766135088476,12.94557054,844.67,843.6,1.75849236]
[1766135088477,12.94557054,844.67,843.76,1.17410749]
[1766135089678,12.94557054,844.67,843.74,1.17410749]
[1766135089978,1.18530218,844.66,843.72,1.17410749]
[1766135090278,1.18530218,844.66,843.65,1.17410749]
[1766135090478,1.18530218,844.66,843.6,1.17410749]
[1766135091078,1.18530218,844.66,843.59,1.17410749]
[1766135091476,1.18530218,844.66,843.58,1.17410749]
[1766135092277,1.18530218,844.66,843.63,1.17410749]
[1766135092478,1.18530218,844.66,843.67,1.17410749]
[1766135092674,1.18530218,844.66,843.68,1.17410749]
[1766135092876,12.94557054,844.67,843.75,1.17410749]
[1766135094980,12.94557054,844.67,843.77,1.17410749]
[1766135095182,12.94557054,844.67,843.78,1.17410749]
[1766135095381,1.18524627,844.66,843.78,1.17410749]
[1766135095779,12.94557054,844.67,843.85,1.17410749]
[1766135095981,12.94557054,844.67,843.95,1.17410749]
[1766135097585,12.94557054,844.67,843.94,1.17410749]
[1766135098282,12.94557054,844.67,843.93,1.17410749]
[1766135099388,12.94557054,844.67,843.92,1.17410749]
[1766135099689,12.94557054,844.67,843.93,1.17410749]
[1766135099890,12.94557054,844.67,843.94,1.17410749]
[1766135100886,12.94557054,844.67,843.9,1.17410749]
[1766135101390,12.94557054,844.67,843.95,1.17410749]
[1766135102492,12.94557054,844.67,843.92,1.17410749]
[1766135102691,12.94557054,844.67,843.84,1.17410749]
[1766135102888,12.94557054,844.67,843.83,1.17410749]
[1766135103188,0.206083,844.52,843.72,1.17410749]
[1766135103389,0.206083,844.52,843.8,1.17410749]
[1766135103693,12.94557054,844.67,843.8,1.17410749]
[1766135103993,0.20607507,844.61,843.96,1.17410749]
[1766135104588,0.20607507,844.61,843.88,1.17410749]
[1766135105093,0.20607507,844.61,843.96,1.17410749]
[1766135105291,0.20607507,844.61,843.95,1.17410749]
[1766135105494,1.18149355,845.24,843.95,1.17410749]
[1766135105692,1.18495673,845.23,843.95,1.17410749]
[1766135105995,0.20601834,844.92,843.96,1.17410749]
[1766135106197,13.00038303,844.92,843.96,1.17410749]
[1766135106390,13.00038303,844.92,843.47,9.01913829]
[1766135106391,13.00038303,844.92,844.14,1.17410749]
[1766135106592,13.00038303,844.92,844.28,1.17410749]
[1766135106896,13.00038303,844.92,844.22,1.17410749]
[1766135107296,13.00038303,844.92,844.19,1.17410749]
[1766135107697,13.00038303,844.92,844.14,1.17410749]
[1766135108293,13.00038303,844.92,844.13,1.17410749]
[1766135109297,13.00038303,844.92,844.11,1.17410749]
[1766135109898,13.00038303,844.92,844.05,1.17410749]
[1766135110492,13.00038303,844.92,844.04,1.17410749]
[1766135111398,13.00038303,844.92,844.03,1.17410749]
[1766135111893,13.00038303,844.92,844.09,1.17410749]
[1766135112697,13.00038303,844.92,844.17,1.17410749]
[1766135112999,13.00038303,844.92,844.18,1.17410749]
[1766135113200,13.00038303,844.92,844.16,1.17410749]
[1766135114304,13.00038303,844.92,844.15,1.17410749]
[1766135115103,12.79436469,844.92,844.19,1.17410749]
[1766135115404,12.79436469,844.92,844.17,1.17410749]
[1766135116199,12.79436469,844.92,844.25,1.17410749]
[1766135116604,12.79436469,844.92,844.32,1.17410749]
[1766135117007,12.79436469,844.92,844.19,1.17410749]
[1766135117206,12.79436469,844.92,844.2,1.17410749]
[1766135117405,12.79436469,844.92,844.18,1.17410749]
[1766135118207,12.79436469,844.92,844.17,1.17410749]
[1766135118403,54.70078932,845.55,844.18,1.17410749]
[1766135118602,54.70078932,845.55,844.27,1.17410749]
[1766135118906,0.20593056,845.21,844.21,1.17410749]
[1766135119304,0.20593056,845.21,844.2,1.17410749]
[1766135120306,0.20593056,845.21,844.19,1.17410749]
[1766135120509,0.20593056,845.21,844.11,1.17410749]
[1766135121209,0.20593056,845.21,844.1,1.17410749]
[1766135121410,0.20593056,845.21,844.04,1.17410749]
[1766135122011,0.20593056,845.21,844.03,1.17410749]
[1766135122205,0.20593056,845.21,843.88,1.75849236]
[1766135122206,0.20593056,845.21,844.01,1.17410749]
[1766135122511,0.20593056,845.21,843.96,1.17410749]
[1766135124411,0.20593056,845.21,843.9,1.17410749]
[1766135125110,0.20593056,845.21,843.95,1.17410749]
[1766135125309,0.20593056,845.21,843.92,1.17410749]
[1766135125613,0.20593056,845.21,843.88,1.17410749]
[1766135126309,0.20593056,845.21,843.89,1.17410749]
[1766135129516,0.20593056,845.21,843.88,1.17410749]
[1766135130321,0.20593056,845.21,843.89,1.17410749]
[1766135131015,0.20593056,845.21,843.86,1.17410749]
[1766135131919,0.20593056,845.21,843.82,1.17410749]
[1766135132518,0.20593056,845.21,843.8,1.17410749]
[1766135133513,0.20593056,845.21,843.79,1.17410749]
[1766135133713,0.20593056,845.21,843.74,1.17410749]
[1766135134518,0.20593056,845.21,843.66,1.17410749]
[1766135135317,0.20593056,845.21,843.73,1.17410749]
[1766135135518,0.20593056,845.21,843.72,1.17410749]
[1766135136219,0.20593056,845.21,843.74,1.17410749]
[1766135138719,0.20593056,845.21,843.71,1.17410749]
[1766135138919,0.20593056,845.21,843.66,1.17410749]
[1766135139621,0.20593056,845.21,843.62,1.17410749]
[1766135140037,0.20593056,845.21,843.74,1.17410749]
[1766135140424,0.20593056,845.21,843.7,1.17410749]
[1766135141524,0.20593056,845.21,843.74,1.17410749]
[1766135142124,0.20593056,845.21,843.71,1.17410749]
[1766135142323,0.20593056,845.21,843.72,1.17410749]
[1766135142519,0.20593056,845.21,843.56,1.75849236]
[1766135142520,0.20593056,845.21,843.73,1.17410749]
[1766135143133,0.20593056,845.21,843.8,1.17410749]
[1766135143625,0.20593056,845.21,843.75,1.17410749]
[1766135144124,0.20593056,845.21,843.8,1.17410749]
[1766135144321,0.20593056,845.21,843.81,1.17410749]
[1766135145527,0.20593056,845.21,843.75,1.17410749]
[1766135145826,0.20593056,845.21,843.74,1.17410749]
[1766135146426,0.20593056,845.21,843.73,1.17410749]
[1766135146826,0.20593056,845.21,843.69,1.17410749]
[1766135147026,0.20593056,845.21,843.73,1.17410749]
[1766135147524,0.20593056,845.21,843.74,1.17410749]
[1766135148522,1.39065261,845.21,843.81,1.17410749]
[1766135148829,1.18472205,845.2,843.81,1.17410749]
[1766135149027,1.18472205,845.19,843.75,1.17410749]
[1766135149327,1.18472205,845.18,843.75,1.17410749]
[1766135149527,1.18472205,845.17,843.8,1.17410749]
[1766135149728,1.18472205,845.16,843.8,1.17410749]
[1766135150028,1.18472205,845.15,843.8,1.17410749]
[1766135150328,1.18472205,845.14,843.8,1.17410749]
[1766135150524,1.18472205,845.13,843.88,1.17410749]
[1766135150725,1.18472205,845.12,843.82,1.17410749]
[1766135150929,1.18472205,845.11,843.84,1.17410749]
[1766135151130,1.18472205,845.1,843.84,1.17410749]
[1766135151330,1.18472205,845.09,843.85,1.17410749]
[1766135151531,0.20593056,845.21,843.89,1.17410749]
[1766135152630,0.20593056,845.21,843.9,1.17410749]
[1766135153525,0.20593056,845.21,843.89,1.17410749]
[1766135154526,0.20593056,845.21,843.9,1.17410749]
[1766135156432,0.20593056,845.21,843.96,1.17410749]
[1766135157834,0.20593056,845.21,844.0,1.17410749]
[1766135158331,0.20593056,845.21,843.94,1.17410749]
[1766135158934,0.20593056,845.21,843.92,1.17410749]
[1766135160436,0.20593056,845.21,843.85,1.17410749]
[1766135160936,0.20593056,845.21,843.93,1.17410749]
[1766135161433,0.20593056,845.21,843.87,1.17410749]
[1766135161934,0.20593056,845.21,843.92,1.17410749]
[1766135162133,0.20593056,845.21,843.87,1.17410749]
[1766135162938,1.39080224,845.21,843.87,1.17410749]
[1766135163237,1.18487168,845.2,843.97,1.17410749]
[1766135163438,1.18487168,845.19,843.97,1.17410749]
[1766135163634,1.18487168,845.18,843.97,1.17410749]
[1766135163834,1.18487168,845.17,844.05,1.17410749]
[1766135164037,0.20593056,845.21,843.47,9.01913829]
[1766135164038,1.18487168,845.16,844.04,1.17410749]
[1766135164235,1.18487168,845.15,844.04,1.17410749]
[1766135164438,1.18487168,845.14,843.99,1.17410749]
[1766135164640,1.18487168,845.13,843.99,1.17410749]
[1766135164843,0.20593056,845.21,844.03,1.17410749]
[1766135165038,0.20593056,845.21,844.04,1.17410749]
[1766135165444,0.20593056,845.21,844.05,1.17410749]
[1766135165944,0.20593056,845.21,844.04,1.17410749]
[1766135166741,0.20593056,845.21,843.97,1.17410749]
[1766135167351,0.20593056,845.21,843.47,9.01913829]
[1766135167352,0.20593056,845.21,843.92,1.17410749]
[1766135168955,0.20593056,845.21,843.93,1.17410749]
[1766135169255,0.20593056,845.21,843.96,1.17410749]
[1766135170350,0.20593056,845.21,843.95,1.17410749]
[1766135170756,1.3908504,845.21,843.95,1.17410749]
[1766135170952,1.18491984,845.2,843.95,1.17410749]
[1766135171152,1.18491984,845.19,843.95,1.17410749]
[1766135171352,1.18491984,845.18,843.95,1.17410749]
[1766135171557,1.18491984,845.17,843.95,1.17410749]
[1766135171757,1.18491984,845.16,843.95,1.17410749]
[1766135171958,1.18491984,845.15,843.95,1.17410749]
[1766135172157,1.18488058,845.14,843.95,1.17410749]
[1766135172353,1.18488058,845.13,843.95,1.17410749]
[1766135172557,1.18488058,845.12,843.95,1.17410749]
[1766135172758,1.18488058,845.11,843.95,1.17410749]
[1766135173059,1.18488058,845.1,843.95,1.17410749]
[1766135173261,1.18488058,845.09,843.99,1.17410749]
[1766135173459,1.18488058,845.08,843.99,1.17410749]
[1766135173759,1.18488058,845.07,843.99,1.17410749]
[1766135173956,1.18488058,845.06,843.99,1.17410749]
[1766135174162,0.20593056,845.21,844.03,1.17410749]
[1766135174467,0.20593056,845.21,844.0,1.17410749]
[1766135175662,0.20593056,845.21,844.07,1.17410749]
[1766135176361,0.20593056,845.21,844.08,1.17410749]
[1766135177264,0.20593056,845.21,844.1,1.17410749]
[1766135177465,0.20593056,845.21,844.05,1.17410749]
[1766135177764,0.20593056,845.21,844.1,1.17410749]
[1766135178266,0.20593056,845.21,844.11,1.17410749]
[1766135179367,0.20593056,845.21,844.13,1.17410749]
[1766135179561,0.20593056,845.21,844.14,1.17410749]
[1766135180059,0.20593056,845.21,844.15,1.17410749]
[1766135180265,0.20593056,845.21,844.16,1.17410749]
[1766135181062,0.20593056,845.21,844.23,1.17410749]
[1766135181263,0.20593056,845.21,844.19,1.17410749]
[1766135181967,0.20593056,845.21,844.24,1.17410749]
[1766135182671,0.20593056,845.21,844.25,1.17410749]
[1766135182963,0.20593056,845.21,844.26,1.17410749]
[1766135183369,0.20593056,845.21,844.29,1.17410749]
[1766135183769,0.20593056,845.21,844.26,1.17410749]
[1766135184873,0.20593056,845.21,844.21,1.17410749]
[1766135186471,0.20593056,845.21,844.2,1.17410749]
[1766135186866,0.20593056,845.21,844.09,1.17410749]
[1766135188069,1.39070673,845.21,844.09,1.17410749]
[1766135188269,1.18477617,845.2,844.09,1.17410749]
[1766135188465,1.18477617,845.19,844.05,1.17410749]
[1766135188671,1.18477617,845.18,844.05,1.17410749]
[1766135188871,0.20593056,845.21,844.05,1.17410749]
[1766135189272,0.20593056,845.21,844.0,1.17410749]
[1766135189781,0.20593056,845.21,843.97,1.17410749]
[1766135190066,0.20593056,845.21,843.93,1.17410749]
[1766135190286,0.20593056,845.21,843.96,1.17410749]
[1766135190670,0.20593056,845.21,843.94,1.17410749]
[1766135191067,0.20593056,845.21,843.47,9.01913829]
[1766135191068,1.18149355,845.04,843.75,1.17410749]
[1766135191266,1.18482848,845.03,843.8,1.17410749]
[1766135191467,1.18482848,845.02,843.79,1.17410749]
[1766135191672,1.18482848,845.01,843.78,1.17410749]
[1766135191971,1.18482848,845.0,843.74,1.17410749]
[1766135192171,1.18482848,844.99,843.74,1.17410749]
[1766135192370,1.18482848,844.98,843.73,1.17410749]
[1766135192571,1.18482848,844.97,843.73,1.17410749]
[1766135192770,1.18482848,844.96,843.73,1.17410749]
[1766135192966,1.97831892,845.21,843.76,1.17410749]
[1766135192967,1.18482848,844.95,843.76,1.17410749]
[1766135193170,1.18482848,844.94,843.76,1.17410749]
[1766135193371,1.18520999,844.93,843.76,1.17410749]
[1766135193672,1.18520999,844.92,843.76,1.17410749]
[1766135193867,1.18520999,844.91,843.76,1.17410749]
[1766135194173,1.18520999,844.9,843.77,1.17410749]
[1766135194370,1.18149355,845.11,843.77,1.17410749]
[1766135194371,1.18520999,844.89,843.77,1.17410749]
[1766135194571,1.18520999,844.88,843.77,1.17410749]
[1766135194768,1.18520999,844.87,843.77,1.17410749]
[1766135194971,1.18520999,844.86,843.77,1.17410749]
[1766135195172,1.18520999,844.85,843.76,1.17410749]
[1766135195468,1.18520999,844.84,843.76,1.17410749]
[1766135195667,1.18520999,844.83,843.74,1.17410749]
[1766135195873,1.18520999,844.82,843.74,1.17410749]
[1766135196065,1.18520999,844.81,843.74,1.17410749]
[1766135196270,1.18520999,844.8,843.74,1.17410749]
[1766135196468,1.85874408,844.79,843.57,1.76768165]
[1766135196669,1.85874408,844.78,843.57,1.76768165]
[1766135196868,1.85874408,844.77,843.57,1.76768165]
[1766135197169,0.20593056,845.21,843.47,9.01913829]
[1766135197170,1.85874407,844.76,843.53,1.76768165]
[1766135197369,1.85874407,844.75,843.53,1.76768165]
[1766135197568,1.85874407,844.74,843.53,1.76768165]
[1766135197770,1.85874407,844.73,843.53,1.76768165]
[1766135197974,0.67353408,844.72,843.53,1.76768165]
[1766135198169,0.67353408,844.71,843.53,1.76768165]
[1766135198368,0.67353408,844.7,843.53,1.76768165]
[1766135198573,0.67353408,844.69,843.53,1.76768165]
[1766135198769,1.18526202,845.05,843.53,1.76768165]
[1766135198770,0.67353408,844.68,843.53,1.76768165]
[1766135198971,0.67353408,844.67,843.53,1.76768165]
[1766135199173,0.67353408,844.66,843.53,1.76768165]
[1766135199471,0.67353408,844.65,843.52,1.76768165]
[1766135199674,1.18526202,845.04,843.52,1.76768165]
[1766135199872,1.85868486,845.03,843.51,1.76768165]
[1766135200069,1.85868486,845.02,843.51,1.76768165]
[1766135200272,1.85868486,845.01,843.51,1.76768165]
[1766135200470,1.85868486,845.0,843.51,1.76768165]
[1766135200671,1.85868486,844.99,843.51,1.76768165]
[1766135200876,1.85868486,844.98,843.51,1.76768165]
[1766135201075,1.85868486,844.97,843.51,1.76768165]
[1766135201274,1.85868486,844.96,843.51,1.76768165]
[1766135201473,1.85868486,844.95,843.5,1.76768165]
[1766135201677,1.85868486,844.94,843.5,1.76768165]
[1766135201878,1.85868486,844.93,843.53,1.76768165]
[1766135202078,1.85868486,844.92,843.53,1.76768165]
[1766135202280,1.85868486,844.91,843.53,1.76768165]
[1766135202479,1.85868486,844.9,843.53,1.76768165]
[1766135202779,1.85868486,844.89,843.53,1.76768165]
[1766135202976,1.85868486,844.88,843.53,1.76768165]
[1766135203274,1.85868486,844.87,843.53,1.76768165]
[1766135203478,1.85868486,844.86,843.52,1.76768165]
[1766135203673,1.85868486,844.85,843.52,1.76768165]
[1766135203873,1.85868486,844.84,843.5,1.76768165]
[1766135204079,1.85868486,844.83,843.5,1.76768165]
[1766135204278,1.85868486,844.82,843.5,1.76768165]
[1766135204475,1.85868486,844.81,843.48,1.76768165]
[1766135204774,1.85868486,844.8,843.48,1.76768165]
[1766135204977,1.85868486,844.79,843.48,1.76768165]
[1766135205177,1.85868486,844.78,843.48,1.76768165]
[1766135205378,1.85868486,844.77,843.47,10.78681994]
[1766135205579,1.85868486,844.76,843.47,10.78681994]
[1766135205779,0.67342284,844.75,843.47,10.78681994]
[1766135205979,0.67342284,844.74,843.47,10.78681994]
[1766135206177,0.67342284,844.73,843.47,10.78681994]
[1766135206377,0.67342284,844.72,843.47,10.78681994]
[1766135206581,0.67342284,844.71,843.47,10.78681994]
[1766135206782,0.67342284,844.7,843.47,10.78681994]
[1766135206982,0.67342284,844.69,843.47,10.78681994]
[1766135207282,0.67342284,844.68,843.47,10.78681994]
[1766135207480,0.67342284,844.67,843.47,9.01913829]
[1766135207679,0.67249592,844.66,843.47,9.01913829]
[1766135207877,0.6724675,844.65,843.47,9.01913829]
[1766135208081,0.6724675,844.64,843.47,9.01913829]
[1766135208382,0.6724675,844.63,843.47,9.01913829]
[1766135208681,1.18528818,844.97,843.47,9.01913829]
[1766135208982,1.85766711,844.96,843.47,9.01913829]
[1766135209182,1.85766711,844.95,843.47,9.01913829]
[1766135209378,1.85766711,844.94,843.47,9.01913829]
[1766135209581,1.18149355,845.06,843.47,9.01913829]
[1766135209582,1.85766711,844.93,843.47,9.01913829]
[1766135209881,1.85766711,844.92,843.47,9.01913829]
[1766135210083,1.85766711,844.91,843.47,9.01913829]
[1766135210283,1.85766711,844.9,843.47,9.01913829]
[1766135210579,1.85766711,844.89,843.47,9.01913829]
[1766135210782,1.85766711,844.88,843.47,9.01913829]
[1766135210979,1.85766711,844.87,843.47,9.01913829]
[1766135211178,1.85766711,844.86,843.47,9.01913829]
[1766135211385,0.67237893,844.85,843.55,1.76768165]
[1766135211685,0.20593056,845.21,843.55,1.76768165]
[1766135211686,0.67237893,844.84,843.55,1.76768165]
[1766135211886,0.67237893,844.83,843.56,1.76768165]
[1766135212186,0.67237893,844.82,843.56,1.76768165]
[1766135212486,1.18514005,845.2,843.62,1.76768165]
[1766135212686,1.85770819,845.19,843.62,1.76768165]
[1766135212987,1.85770819,845.18,843.62,1.76768165]
[1766135213187,1.85770819,845.17,843.62,1.76768165]
[1766135213387,1.85770819,845.16,843.62,1.76768165]
[1766135213683,1.85770819,845.15,843.62,1.76768165]
[1766135213888,1.85770819,845.14,843.64,1.76768165]
[1766135214088,1.85770819,845.13,843.72,1.76768165]
[1766135214284,1.85770819,845.12,843.72,1.76768165]
[1766135214487,1.85770819,845.11,843.72,1.76768165]
[1766135214683,1.85770819,845.1,843.72,1.76768165]
[1766135214883,0.67256814,845.09,843.76,1.76768165]
[1766135215083,0.67256814,845.08,843.73,1.76768165]
[1766135215287,0.67256814,845.07,843.7,8.76257503]
[1766135215588,0.67256814,845.06,843.7,8.76257503]
[1766135215894,0.67256814,845.05,843.72,1.76768165]
[1766135216086,0.67256814,845.04,843.72,1.76768165]
[1766135216392,0.67256814,845.03,843.7,8.76257503]
[1766135216584,0.67256814,845.02,843.7,8.76257503]
[1766135216784,0.67256814,845.01,843.7,8.76257503]
[1766135216983,0.67256814,845.0,843.7,8.76257503]
[1766135217188,0.67256814,844.99,843.7,8.76257503]
[1766135217384,0.67256814,844.98,843.7,8.76257503]
[1766135217585,0.67256814,844.97,843.7,8.76257503]
[1766135217888,0.67256814,844.96,843.7,8.76257503]
[1766135218088,0.67256814,844.95,843.7,8.76257503]
[1766135218285,0.67256814,844.94,843.7,8.76257503]
[1766135218484,2.36634412,845.15,843.7,8.76257503]
[1766135218485,0.67256814,844.93,843.7,8.76257503]
[1766135218684,0.67256814,844.92,843.7,8.76257503]
[1766135218885,0.67256814,844.91,843.7,8.76257503]
[1766135219089,0.67256814,844.9,843.7,8.76257503]
[1766135219284,0.67256814,844.89,843.7,8.76257503]
[1766135219485,0.67256814,844.88,843.7,8.76257503]
[1766135219688,0.67256814,844.87,843.7,8.76257503]
[1766135219984,0.67256814,844.86,843.7,8.76257503]
[1766135220186,0.67256814,844.85,843.7,8.76257503]
[1766135220388,0.67256814,844.84,843.7,8.76257503]
[1766135220589,0.67256814,844.83,843.7,8.76257503]
[1766135220787,0.67256814,844.82,843.7,8.76257503]
[1766135220993,0.67256814,844.81,843.7,8.76257503]
[1766135221186,0.67256814,844.8,843.7,8.76257503]
[1766135221491,1.18485057,845.02,843.7,8.76257503]
[1766135221790,1.85716567,845.01,843.7,8.76257503]
[1766135221990,1.85716567,845.0,843.7,8.76257503]
[1766135222291,1.85716567,844.99,843.7,8.76257503]
[1766135222491,1.85716567,844.98,843.7,8.76257503]
[1766135222791,1.85716567,844.97,843.7,8.76257503]
[1766135223086,1.85716567,844.96,843.7,8.76257503]
[1766135223291,1.85716567,844.95,843.7,8.76257503]
[1766135223591,1.85716567,844.94,843.7,8.76257503]
[1766135223792,1.85716567,844.93,843.7,8.76257503]
[1766135223986,1.38742411,845.21,843.7,8.76257503]
[1766135223987,1.85716567,844.92,843.7,8.76257503]
[1766135224187,1.85716567,844.91,843.7,8.76257503]
[1766135224492,1.85716567,844.9,843.7,8.76257503]
[1766135224787,1.85716567,844.89,843.7,8.76257503]
[1766135224986,1.85716567,844.88,843.7,8.76257503]
[1766135225188,1.85716567,844.87,843.7,8.76257503]
[1766135225387,1.85716567,844.86,843.7,8.76257503]
[1766135225687,0.6723151,844.85,843.7,8.76257503]
[1766135225890,0.6723151,844.84,843.7,8.76257503]
[1766135226088,0.6723151,844.83,843.7,8.76257503]
[1766135226293,0.6723151,844.82,843.7,8.76257503]
[1766135226494,0.6723151,844.81,843.7,8.76257503]
[1766135226694,0.6723151,844.8,843.7,8.76257503]
[1766135226994,0.6723151,844.79,843.7,8.76257503]
[1766135227195,0.6723151,844.78,843.7,8.76257503]
[1766135227390,0.6723151,844.77,843.7,8.76257503]
[1766135227595,0.6723151,844.76,843.7,8.76257503]
[1766135227792,0.6723151,844.75,843.7,8.76257503]
[1766135227996,1.18519457,845.16,843.7,8.76257503]
[1766135228297,1.85874519,845.15,843.7,8.76257503]
[1766135228499,1.85874519,845.14,843.7,8.76257503]
[1766135228700,1.85874519,845.13,843.7,8.76257503]
[1766135228895,1.85874519,845.12,843.7,8.76257503]
[1766135229099,1.85874519,845.11,843.7,8.76257503]
[1766135229396,1.85874519,845.1,843.7,8.76257503]
[1766135229600,1.85874519,845.09,843.7,8.76257503]
[1766135229900,1.85874519,845.08,843.7,8.76257503]
[1766135230196,1.85874519,845.07,843.7,8.76257503]
[1766135230396,1.85874519,845.06,843.7,8.76257503]
[1766135230601,1.85874519,845.05,843.7,8.76257503]
[1766135230896,1.85874519,845.04,843.7,8.76257503]
[1766135231101,1.85874519,845.03,843.7,8.76257503]
[1766135231402,1.85874519,845.02,843.7,8.76257503]
[1766135231602,1.85874519,845.01,843.7,8.76257503]
[1766135231897,1.85874519,845.0,843.7,8.76257503]
[1766135232105,1.85874519,844.99,843.7,8.76257503]
[1766135232299,0.67355062,844.98,843.75,1.76768165]
[1766135232498,1.18487079,845.2,843.75,1.76768165]
[1766135232702,1.85873001,845.19,843.75,1.76768165]
[1766135232903,1.85873001,845.18,843.75,1.76768165]
[1766135233203,1.85873001,845.17,843.75,1.76768165]
[1766135233503,1.85873001,845.16,843.75,1.76768165]
[1766135233704,1.85873001,845.15,843.73,1.76768165]
[1766135233900,1.85873001,845.14,843.73,1.76768165]
[1766135234100,1.85873001,845.13,843.73,1.76768165]
[1766135234400,1.85873001,845.12,843.74,1.76768165]
[1766135234605,1.85873001,845.11,843.74,1.76768165]
[1766135234904,1.85873001,845.1,843.74,1.76768165]
[1766135235200,1.85873001,845.09,843.74,1.76768165]
[1766135235400,1.85873001,845.08,843.74,1.76768165]
[1766135235600,0.67385922,845.07,843.74,1.76768165]
[1766135235804,0.67385922,845.06,843.74,1.76768165]
[1766135236104,0.67385922,845.05,843.7,8.76257503]
[1766135236300,0.67385922,845.04,843.7,8.76257503]
[1766135236504,0.67385922,845.03,843.7,8.76257503]
[1766135236704,0.67385922,845.02,843.7,8.76257503]
[1766135237000,0.67385922,845.01,843.7,8.76257503]
[1766135237206,0.67385922,845.0,843.7,8.76257503]
[1766135237400,0.67385922,844.99,843.7,8.76257503]
[1766135237604,0.67385922,844.98,843.7,8.76257503]
[1766135237803,0.67385922,844.97,843.7,8.76257503]
[1766135238003,0.67385922,844.96,843.7,8.76257503]
[1766135238298,0.67385922,844.95,843.7,8.76257503]
[1766135238500,0.67385922,844.94,843.7,8.76257503]
[1766135238703,0.67385922,844.93,843.7,8.76257503]
[1766135238904,0.67385922,844.92,843.7,8.76257503]
[1766135239104,0.67385922,844.91,843.7,8.76257503]
[1766135239299,0.67418515,844.9,843.7,8.76257503]
[1766135239498,0.67418515,844.89,843.7,8.76257503]
[1766135239700,0.67418515,844.88,843.7,8.76257503]
[1766135239903,0.67418515,844.87,843.7,8.76257503]
[1766135240100,0.67418515,844.86,843.7,8.76257503]
[1766135240404,0.67418515,844.85,843.7,8.76257503]
[1766135240604,0.67418515,844.84,843.7,8.76257503]
[1766135240804,0.67418515,844.83,843.7,8.76257503]
[1766135241100,0.67418515,844.82,843.7,8.76257503]
[1766135241307,0.67418515,844.81,843.7,8.76257503]
[1766135241505,0.67418515,844.8,843.7,8.76257503]
[1766135241706,0.67418515,844.79,843.7,8.76257503]
[1766135241905,0.67418515,844.78,843.7,8.76257503]
[1766135242205,13.09943089,844.82,843.7,8.76257503]
[1766135242206,0.67418515,844.77,843.7,8.76257503]
[1766135242402,0.67418515,844.76,843.7,8.76257503]
[1766135242600,0.67418515,844.75,843.7,8.76257503]
[1766135242804,0.67418515,844.74,843.7,8.76257503]
[1766135243004,0.67418515,844.73,843.7,8.76257503]
[1766135243205,0.67418515,844.72,843.7,8.76257503]
[1766135243411,0.67418515,844.71,843.7,8.76257503]
[1766135243710,0.67418515,844.7,843.7,8.76257503]
[1766135243905,0.67418515,844.69,843.7,8.76257503]
[1766135244107,0.67418515,844.68,843.7,8.76257503]
[1766135244308,0.67418515,844.67,843.7,8.76257503]
[1766135244510,0.67418515,844.66,843.7,8.76257503]
[1766135244710,0.67418515,844.65,843.7,8.76257503]
[1766135244910,0.67418515,844.64,843.7,8.76257503]
[1766135245111,0.67418515,844.63,843.7,8.76257503]
[1766135245311,0.67418515,844.62,843.7,8.76257503]
[1766135245511,0.67418515,844.61,843.7,8.76257503]
[1766135245710,0.67418515,844.6,843.7,8.76257503]
[1766135245910,0.67418515,844.59,843.7,8.76257503]
[1766135246111,1.18520282,844.81,843.7,8.76257503]
[1766135246313,0.67487032,844.8,843.7,8.76257503]
[1766135246607,0.67487032,844.79,843.7,8.76257503]
[1766135246807,0.67487032,844.78,843.7,8.76257503]
[1766135247006,0.67487032,844.77,843.7,8.76257503]
[1766135247212,0.67487032,844.76,843.7,8.76257503]
[1766135247409,0.67487032,844.75,843.7,8.76257503]
[1766135247708,0.67487032,844.74,843.7,8.76257503]
[1766135247913,0.67487032,844.73,843.7,8.76257503]
[1766135248209,0.67487032,844.72,843.7,8.76257503]
[1766135248414,0.67487032,844.71,843.7,8.76257503]
[1766135248613,0.67487032,844.7,843.7,8.76257503]
[1766135248815,0.67487032,844.69,843.7,8.76257503]
[1766135249016,0.67487032,844.68,843.7,8.76257503]
[1766135249212,0.67487032,844.67,843.7,8.76257503]
[1766135249419,0.67487032,844.66,843.7,8.76257503]
[1766135249618,0.67487032,844.65,843.7,8.76257503]
[1766135249814,0.67487032,844.64,843.7,8.76257503]
[1766135250019,0.67487032,844.63,843.7,8.76257503]
[1766135250219,0.67487032,844.62,843.7,8.76257503]
[1766135250421,0.67487032,844.61,843.7,8.76257503]
[1766135250620,1.18520282,844.81,843.7,8.76257503]
[1766135250821,0.67556665,844.8,843.7,8.76257503]